bitfinex-derivatives/quotes_BTCF0:USTF0_20240820
["timestamp","ask_amount","ask_price","bid_price","bid_amount"]
[1724113762787,0.3608,60295.0,60259.0,0.3608]
[1724113762976,0.08351,60317.0,60294.0,0.3608]
[1724113763172,0.08351,60315.0,60310.0,0.3608]
[1724113763369,0.08351,60315.0,60314.0,0.3608]
[1724113763370,0.24351,60315.0,60314.0,0.3608]
[1724113763572,0.56991,60315.0,60314.0,0.3608]
[1724113763778,0.80530272,60315.0,60314.0,0.3608]
[1724113763969,0.80530272,60315.0,60314.0,0.0008]
[1724113763970,1.53534272,60315.0,60314.0,0.0008]
[1724113764172,0.91797065,60315.0,60314.0,0.0008]
[1724113764377,0.74517793,60315.0,60314.0,0.3616]
[1724113764578,0.08777793,60315.0,60314.0,0.3616]
[1724113764780,0.01526793,60315.0,60314.0,0.3616]
[1724113765084,1.25170392,60315.0,60305.0,0.3608]
[1724113765284,0.22078131,60310.0,60308.0,0.00024884]
[1724113765488,0.058017,60306.0,60292.0,0.3608]
[1724113765676,0.01526793,60293.0,60292.0,0.3608]
[1724113766073,0.058033,60290.0,60280.0,0.3608]
[1724113766385,0.3608,60282.0,60244.0,0.3608]
[1724113766581,3.77,60258.0,60244.0,0.3608]
[1724113766778,3.78526793,60258.0,60244.0,0.3608]
[1724113766981,3.78526793,60258.0,60242.0,0.09654767]
[1724113766982,4.14606793,60258.0,60242.0,0.09654767]
[1724113767178,0.01526793,60243.0,60242.0,0.09654767]
[1724113767375,0.42,60262.0,60242.0,0.09654767]
[1724113767376,0.3608,60261.0,60242.0,1.32984767]
[1724113767684,0.00012496,60254.0,60246.0,0.00024884]
[1724113768087,0.00012496,60254.0,60246.0,0.40024884]
[1724113768487,0.14012496,60254.0,60246.0,0.40024884]
[1724113768783,0.3608,60249.0,60246.0,0.40024884]
[1724113769486,0.3608,60248.0,60246.0,0.40024884]
[1724113769783,0.5108,60248.0,60246.0,0.00024884]
[1724113770377,0.3608,60248.0,60246.0,0.40024884]
[1724113771089,0.00012496,60254.0,60246.0,0.40024884]
[1724113771279,0.00012496,60254.0,60251.0,0.3608]
[1724113771475,0.3608,60271.0,60252.0,0.3353]
[1724113771684,0.3608,60269.0,60251.0,0.39975116]
[1724113771880,0.3608,60279.0,60263.0,0.3608]
[1724113772084,0.3608,60279.0,60269.0,0.3608]
[1724113772286,3.77,60280.0,60278.0,0.3608]
[1724113772586,0.00824813,60287.0,60279.0,0.3608]
[1724113772786,0.3608,60300.0,60286.0,0.3608]
[1724113772989,0.00024747,60285.0,60279.0,0.3608]
[1724113773186,0.00024747,60285.0,60279.0,0.39150303]
[1724113773386,0.3608,60303.0,60284.0,0.3608]
[1724113773690,0.3608,60303.0,60293.0,0.3608]
[1724113773891,0.3608,60298.0,60293.0,0.3608]
[1724113774393,0.3608,60298.0,60284.0,0.3608]
[1724113774585,0.3608,60298.0,60289.0,0.00024884]
[1724113774982,0.3608,60298.0,60289.0,0.03095187]
[1724113775484,0.3608,60320.0,60296.0,0.3353]
[1724113775682,3.77,60324.0,60310.0,0.3608]
[1724113775883,0.3608,60320.0,60310.0,0.3608]
[1724113776084,0.3608,60320.0,60310.0,0.39150303]
[1724113776289,3.77,60324.0,60310.0,0.39150303]
[1724113776494,0.3608,60334.0,60317.0,0.3608]
[1724113776793,0.3608,60334.0,60326.0,0.35809303]
[1724113777089,3.77,60333.0,60326.0,0.03070303]
[1724113777286,3.77,60333.0,60322.0,0.35809303]
[1724113777489,3.77,60333.0,60307.0,0.3608]
[1724113777490,0.3608,60326.0,60307.0,0.3608]
[1724113777794,0.3608,60326.0,60321.0,0.00024884]
[1724113778503,0.3608,60331.0,60321.0,0.00024884]
[1724113778682,0.3608,60324.0,60321.0,0.00024884]
[1724113779280,0.01718286,60343.0,60321.0,0.00024884]
[1724113779281,0.08351,60358.0,60334.0,0.057989]
[1724113779581,0.3608,60381.0,60361.0,0.32739]
[1724113779783,0.3608,60381.0,60356.0,0.3608]
[1724113779784,0.3608,60376.0,60356.0,0.3608]
[1724113780091,0.3608,60365.0,60356.0,0.3608]
[1724113780395,0.39,60380.0,60351.0,0.3608]
[1724113780396,0.3608,60377.0,60354.0,0.3608]
[1724113780687,0.057929,60398.0,60372.0,0.3608]
[1724113780884,3.77,60378.0,60372.0,0.3608]
[1724113781087,3.93,60378.0,60364.0,0.3608]
[1724113781279,0.17907545,60377.0,60355.0,0.3608]
[1724113781485,0.3608,60378.0,60365.0,0.36104837]
[1724113781690,0.3608,60378.0,60365.0,0.00024837]
[1724113781890,0.5108,60378.0,60365.0,0.00024837]
[1724113782282,0.3608,60373.0,60365.0,0.00024837]
[1724113782592,0.3608,60366.0,60333.0,0.3608]
[1724113782792,0.3608,60352.0,60333.0,0.3608]
[1724113782990,0.3608,60345.0,60333.0,0.3608]
[1724113783193,0.0815,60351.0,60343.0,0.3608]
[1724113783408,0.3608,60366.0,60348.0,0.3608]
[1724113783688,0.0815,60389.0,60348.0,0.3608]
[1724113783689,0.25,60368.0,60356.0,0.3608]
[1724113783891,0.53722117,60365.0,60347.0,0.3608]
[1724113784087,0.3608,60360.0,60347.0,0.3608]
[1724113784290,0.3608,60348.0,60329.0,0.3608]
[1724113784489,0.3608,60348.0,60301.0,0.3353]
[1724113784490,0.3608,60334.0,60316.0,0.3608]
[1724113784685,0.3608,60334.0,60332.0,0.0002486]
[1724113784887,0.3608,60334.0,60286.0,0.418835]
[1724113784888,0.058001,60323.0,60286.0,0.418835]
[1724113785085,0.3608,60300.0,60286.0,0.418835]
[1724113785292,0.3608,60300.0,60286.0,0.3608]
[1724113785696,0.3608,60287.0,60264.0,0.058057]
[1724113785896,0.3608,60280.0,60264.0,0.058057]
[1724113786197,0.3608,60280.0,60268.0,0.3608]
[1724113786392,0.3608,60280.0,60269.0,0.00024879]
[1724113786595,0.00024848,60282.0,60269.0,0.00024879]
[1724113786794,0.00024848,60282.0,60279.0,0.3608]
[1724113786995,0.7216,60280.0,60269.0,0.00024879]
[1724113787185,0.3608,60274.0,60269.0,0.00024879]
[1724113787792,0.00013743,60273.0,60269.0,0.00024879]
[1724113787993,0.00024848,60282.0,60272.0,0.3608]
[1724113788192,0.00024848,60282.0,60277.0,0.3608]
[1724113788396,0.00024848,60282.0,60272.0,0.3608]
[1724113788608,0.00024848,60282.0,60277.0,0.3608]
[1724113789096,0.0787,60299.0,60281.0,0.3608]
[1724113789294,0.0787,60299.0,60289.0,0.3608]
[1724113789687,0.0787,60299.0,60294.0,0.3608]
[1724113789888,0.0787,60299.0,60289.0,0.3608]
[1724113790105,0.0787,60299.0,60294.0,0.3608]
[1724113790699,0.0787,60299.0,60289.0,0.3608]
[1724113792304,0.3608,60295.0,60288.0,0.00024879]
[1724113792498,0.5108,60295.0,60288.0,0.00024879]
[1724113792687,0.3608,60289.0,60288.0,0.00024879]
[1724113792997,0.3608,60289.0,60276.0,0.3608]
[1724113792998,0.5308,60289.0,60276.0,0.3608]
[1724113793200,0.3608,60307.0,60288.0,0.3608]
[1724113793514,0.3608,60307.0,60295.0,0.3353]
[1724113793796,0.3608,60307.0,60295.0,0.3608]
[1724113794300,0.36104879,60307.0,60295.0,0.36104879]
[1724113794506,0.3608,60301.0,60295.0,0.00024879]
[1724113794689,0.36104879,60307.0,60295.0,0.00024879]
[1724113794890,0.3608,60302.0,60295.0,0.36104879]
[1724113795297,0.31932362,60302.0,60295.0,0.00024879]
[1724113795491,0.31932362,60302.0,60296.0,0.3608]
[1724113796296,1e-08,60307.0,60305.0,0.058017]
[1724113796502,1e-08,60307.0,60306.0,0.6961]
[1724113796702,1e-08,60307.0,60306.0,1.19358]
[1724113796893,0.41879,60334.0,60306.0,1.59358]
[1724113797197,0.41879,60334.0,60316.0,0.3608]
[1724113797198,0.3608,60334.0,60316.0,0.3608]
[1724113797699,0.3608,60327.0,60316.0,0.3608]
[1724113798001,0.01392294,60337.0,60322.0,0.418801]
[1724113798199,0.3608,60351.0,60329.0,0.3608]
[1724113798505,0.3608,60338.0,60329.0,0.3608]
[1724113798690,0.3608,60338.0,60334.0,0.00024858]
[1724113800492,0.14735379,60337.0,60334.0,0.00024858]
[1724113800806,0.14735379,60336.0,60334.0,0.00024858]
[1724113801303,0.04057267,60337.0,60334.0,0.00024858]
[1724113801506,0.04057267,60337.0,60334.0,0.49744858]
[1724113801801,0.01390126,60338.0,60334.0,0.00024858]
[1724113802006,0.04056987,60343.0,60334.0,0.00024858]
[1724113802007,0.14735379,60339.0,60334.0,0.00024858]
[1724113802503,0.04056987,60343.0,60338.0,1.15777]
[1724113802805,0.13097243,60348.0,60338.0,0.26057]
[1724113802989,0.13097243,60348.0,60334.0,0.40024858]
[1724113802990,0.01391808,60350.0,60349.0,0.057976]
[1724113803190,0.05085158,60360.0,60346.0,0.72739]
[1724113803191,0.13093003,60361.0,60346.0,0.321146]
[1724113803390,0.04056987,60364.0,60351.0,0.3608]
[1724113803391,0.13093003,60360.0,60351.0,0.3608]
[1724113803591,0.13093003,60360.0,60351.0,0.32739]
[1724113803592,0.13093003,60357.0,60351.0,0.32739]
[1724113803800,0.13093003,60357.0,60351.0,0.29398]
[1724113804003,0.13093003,60352.0,60338.0,0.3608]
[1724113804299,0.057971,60354.0,60338.0,0.32739]
[1724113804300,0.13093003,60347.0,60338.0,0.32739]
[1724113804501,0.13093003,60346.0,60338.0,0.29398]
[1724113804802,0.13093003,60346.0,60319.0,0.058004]
[1724113804803,0.418786,60339.0,60319.0,0.058004]
[1724113805003,0.3608,60329.0,60320.0,0.058003]
[1724113805204,0.3608,60329.0,60323.0,0.00024858]
[1724113805394,0.04056987,60333.0,60328.0,0.3608]
[1724113805598,0.00024788,60335.0,60323.0,0.36104858]
[1724113805799,0.3608,60332.0,60323.0,0.36104858]
[1724113806210,0.0001305,60334.0,60331.0,0.3608]
[1724113806600,0.0001305,60334.0,60333.0,0.057991]
[1724113806809,0.0001305,60334.0,60331.0,1.1216]
[1724113806810,0.0001305,60334.0,60331.0,0.7242]
[1724113807106,0.0001305,60334.0,60333.0,0.057991]
[1724113807500,0.0001305,60334.0,60333.0,0.955231]
[1724113808009,0.4402,60345.0,60333.0,0.955231]
[1724113808010,0.05084547,60358.0,60334.0,0.49724]
[1724113808304,0.14735379,60359.0,60352.0,0.057972]
[1724113808521,0.50815379,60364.0,60353.0,0.057972]
[1724113808705,0.04055847,60363.0,60353.0,0.057972]
[1724113808906,5.602e-05,60362.0,60354.0,0.057971]
[1724113809210,0.27521648,60364.0,60352.0,0.00024858]
[1724113809412,0.13072279,60360.0,60358.0,0.3608]
[1724113809603,0.13072279,60360.0,60355.0,0.05797]
[1724113809800,0.13072279,60358.0,60352.0,0.00024858]
[1724113810000,0.3608,60358.0,60352.0,0.00024858]
[1724113810405,0.3608,60353.0,60329.0,0.3608]
[1724113810604,0.3608,60336.0,60329.0,0.3608]
[1724113810805,0.04055842,60340.0,60329.0,0.3608]
[1724113811305,0.3608,60335.0,60329.0,0.3608]
[1724113811814,0.14735379,60337.0,60329.0,0.3608]
[1724113812112,0.083,60340.0,60329.0,0.418794]
[1724113812304,0.083,60340.0,60329.0,0.3608]
[1724113812699,0.3608,60335.0,60329.0,0.3608]
[1724113813117,0.083,60340.0,60329.0,0.3608]
[1724113813408,0.3608,60338.0,60329.0,0.3608]
[1724113814313,0.3608,60338.0,60328.0,0.00024858]
[1724113814314,0.3608,60333.0,60328.0,0.00024858]
[1724113815706,0.3608,60333.0,60328.0,1e-08]
[1724113816113,0.5108,60333.0,60328.0,1e-08]
[1724113816614,0.04057715,60332.0,60328.0,1e-08]
[1724113816811,0.24856915,60332.0,60328.0,1e-08]
[1724113817015,0.49728,60331.0,60328.0,1e-08]
[1724113817212,0.11599,60329.0,60328.0,1e-08]
[1724113817515,0.057999,60325.0,60292.0,0.3608]
[1724113817813,0.057999,60325.0,60293.0,0.058029]
[1724113817814,0.3608,60303.0,60293.0,0.058029]
[1724113818116,0.3608,60303.0,60285.0,0.3353]
[1724113818117,0.3608,60303.0,60290.0,0.3608]
[1724113819010,0.3608,60303.0,60296.0,0.00024858]
[1724113819207,0.99828,60303.0,60296.0,0.00024858]
[1724113819404,0.3608,60297.0,60296.0,0.00024858]
[1724113819608,0.6848014,60297.0,60296.0,0.00024858]
[1724113819908,0.20057715,60297.0,60296.0,1e-08]
[1724113820106,0.16,60297.0,60296.0,1e-08]
[1724113820306,0.30785453,60297.0,60296.0,1e-08]
[1724113820806,0.00013461,60297.0,60296.0,1e-08]
[1724113821002,0.53093461,60297.0,60296.0,1e-08]
[1724113821309,0.56551316,60297.0,60296.0,1e-08]
[1724113821614,0.36093461,60297.0,60296.0,1e-08]
[1724113821932,0.53093461,60297.0,60296.0,1e-08]
[1724113822612,0.3608,60317.0,60296.0,1.23286001]
[1724113822814,0.3608,60317.0,60305.0,0.058017]
[1724113822999,0.3608,60317.0,60304.0,0.3608]
[1724113823000,0.3608,60311.0,60301.0,0.3608]
[1724113823810,7.33e-05,60308.0,60301.0,0.3608]
[1724113824006,0.057997,60328.0,60301.0,0.3608]
[1724113824007,0.441,60329.0,60307.0,0.6961]
[1724113824214,0.441,60329.0,60321.0,0.3608]
[1724113824401,0.3608,60324.0,60307.0,0.69878]
[1724113824602,0.3608,60321.0,60312.0,0.3608]
[1724113825006,0.3608,60321.0,60307.0,0.33794]
[1724113825007,0.3608,60313.0,60307.0,0.33794]
[1724113825205,0.3608,60313.0,60302.0,0.058021]
[1724113825413,0.3608,60313.0,60310.0,0.00024858]
[1724113825915,0.00024858,60323.0,60312.0,0.3608]
[1724113826213,0.05824958,60323.0,60312.0,0.3608]
[1724113826419,0.05824958,60323.0,60310.0,0.00024858]
[1724113826420,0.3608,60317.0,60310.0,0.00024858]
[1724113826617,0.3608,60311.0,60310.0,0.00024858]
[1724113829315,0.3608,60317.0,60315.0,0.058008]
[1724113829519,0.3608,60317.0,60310.0,0.49768858]
[1724113829520,0.3608,60317.0,60310.0,0.00024858]
[1724113829718,0.15089881,60316.0,60305.0,1.16015193]
[1724113829913,0.00024858,60323.0,60310.0,0.3608]
[1724113829914,0.09145642,60315.0,60310.0,0.3608]
[1724113830111,0.05969097,60323.0,60314.0,0.3353]
[1724113830417,0.05969097,60323.0,60310.0,0.3608]
[1724113830418,0.18056857,60318.0,60316.0,0.3608]
[1724113830620,0.09143883,60317.0,60316.0,0.3608]
[1724113830916,0.09143883,60317.0,60316.0,0.418807]
[1724113831221,0.09143952,60317.0,60316.0,0.418807]
[1724113831606,0.04057789,60317.0,60316.0,0.916167]
[1724113831912,0.04057789,60317.0,60316.0,0.85816]
[1724113832108,0.09143952,60317.0,60311.0,0.00024858]
[1724113832316,0.3608,60320.0,60311.0,0.00024858]
[1724113832317,0.09143952,60316.0,60311.0,0.00024858]
[1724113832625,0.09143952,60315.0,60314.0,0.058008]
[1724113832816,0.11030873,60315.0,60311.0,0.00024858]
[1724113833121,0.15089038,60314.0,60311.0,0.00024858]
[1724113833316,0.15089038,60314.0,60312.0,0.058011]
[1724113833517,0.09144799,60314.0,60312.0,0.058011]
[1724113833828,0.09144799,60313.0,60312.0,0.058011]
[1724113834232,0.09144799,60313.0,60311.0,0.00024858]
[1724113834522,0.22133795,60312.0,60311.0,0.05826058]
[1724113834729,0.20492525,60312.0,60311.0,0.05826058]
[1724113834924,0.04058165,60312.0,60311.0,0.95566058]
[1724113835428,0.04058165,60312.0,60311.0,0.55566058]
[1724113835728,0.23161692,60312.0,60311.0,0.89764858]
[1724113835925,0.05086062,60312.0,60311.0,1.29096058]
[1724113836230,0.23163268,60312.0,60311.0,1.29096058]
[1724113836529,0.18077206,60314.0,60313.0,0.05801]
[1724113836716,0.057979,60346.0,60313.0,0.74296]
[1724113836918,0.3608,60399.0,60345.0,0.3353]
[1724113837115,0.3608,60406.0,60345.0,0.3353]
[1724113837116,0.057968,60396.0,60390.0,0.3608]
[1724113837320,0.3608,60414.0,60390.0,0.3608]
[1724113837321,0.057923,60405.0,60390.0,0.3608]
[1724113837522,0.057968,60397.0,60390.0,0.3608]
[1724113837821,0.418768,60391.0,60379.0,0.3608]
[1724113838025,0.418768,60391.0,60367.0,0.3608]
[1724113838026,0.057968,60378.0,60367.0,0.3608]
[1724113838219,0.057968,60381.0,60367.0,0.3608]
[1724113838549,0.3608,60404.0,60380.0,0.3608]
[1724113838749,0.057968,60390.0,60385.0,0.3608]
[1724113838944,0.057968,60389.0,60387.0,0.057938]
[1724113839446,0.00024835,60400.0,60399.0,0.057928]
[1724113839652,0.00024835,60400.0,60399.0,0.7216]
[1724113839957,0.45821635,60400.0,60387.0,0.00280835]
[1724113840139,0.45821635,60400.0,60387.0,0.00024835]
[1724113840140,0.36104835,60400.0,60387.0,0.00024835]
[1724113840340,0.36104835,60400.0,60389.0,0.3608]
[1724113840547,0.057968,60394.0,60387.0,0.00024835]
[1724113840748,0.00024835,60400.0,60387.0,0.00024835]
[1724113840749,0.00024835,60400.0,60397.0,0.057929]
[1724113840953,0.00024835,60400.0,60399.0,0.3608]
[1724113840954,3.5e-07,60400.0,60399.0,0.3608]
[1724113841251,3.5e-07,60400.0,60399.0,0.85748]
[1724113841446,3.5e-07,60400.0,60399.0,1.25748]
[1724113841642,0.00669832,60400.0,60399.0,1.25748]
[1724113842249,0.3608,60442.0,60399.0,0.7608]
[1724113842451,0.057968,60432.0,60429.0,0.418699]
[1724113842641,0.057968,60438.0,60429.0,0.3608]
[1724113842953,0.057968,60440.0,60434.0,0.3608]
[1724113843151,0.01413822,60442.0,60437.0,0.3353]
[1724113843451,0.3608,60451.0,60439.0,0.3608]
[1724113843841,0.057968,60440.0,60427.0,0.3608]
[1724113844042,0.3608,60435.0,60427.0,0.3608]
[1724113844242,0.057968,60430.0,60427.0,0.3608]
[1724113844444,0.05784565,60410.0,60389.0,0.3608]
[1724113844645,0.05784565,60406.0,60400.0,0.3608]
[1724113844848,0.3608,60403.0,60389.0,0.3608]
[1724113845050,0.1664,60429.0,60372.0,0.0075]
[1724113845051,0.3608,60390.0,60381.0,0.3608]
[1724113845246,0.30027935,60389.0,60373.0,0.3608]
[1724113845449,0.30027935,60389.0,60116.0,0.09374733]
[1724113845450,0.3608,60374.0,60362.0,0.3608]
[1724113845651,0.25976378,60373.0,60362.0,0.3608]
[1724113845861,0.25852915,60369.0,60358.0,0.3608]
[1724113846153,0.3608,60363.0,60355.0,0.3353]
[1724113846353,0.25976378,60362.0,60356.0,0.3608]
[1724113846554,0.25976378,60361.0,60355.0,0.3353]
[1724113846851,0.25850316,60356.0,60355.0,0.3353]
[1724113847060,0.51826694,60356.0,60355.0,0.3353]
[1724113847352,0.51826694,60356.0,60355.0,1.65111]
[1724113847353,0.43652358,60356.0,60355.0,1.65111]
[1724113847546,0.17802042,60356.0,60355.0,1.65111]
[1724113847746,0.17802042,60356.0,60355.0,1.29031]
[1724113847747,0.25976378,60356.0,60355.0,1.29031]
[1724113847948,0.25976378,60356.0,60355.0,0.3353]
[1724113848145,0.25976378,60356.0,60355.0,1.1556832]
[1724113848346,0.25976378,60356.0,60355.0,0.6586432]
[1724113848548,0.17802042,60356.0,60355.0,1.1556832]
[1724113848746,0.25976378,60356.0,60355.0,1.1556832]
[1724113849150,0.25864184,60363.0,60362.0,0.057963]
[1724113849352,0.25864184,60363.0,60362.0,1.30113812]
[1724113849353,0.07650091,60363.0,60362.0,1.30113812]
[1724113849554,5.3e-07,60368.0,60367.0,0.057958]
[1724113849759,0.07649002,60368.0,60367.0,0.057958]
[1724113849944,0.07649002,60368.0,60367.0,0.954918]
[1724113850150,0.43729002,60368.0,60366.0,0.3353]
[1724113850348,0.07648949,60367.0,60366.0,0.3353]
[1724113850557,0.43728949,60367.0,60366.0,0.3353]
[1724113850758,0.43728949,60367.0,60366.0,1.23226]
[1724113851055,0.43728949,60367.0,60366.0,0.7353]
[1724113851364,0.50522992,60367.0,60366.0,0.08372008]
[1724113851853,0.25311019,60367.0,60366.0,0.08372008]
[1724113852260,5.3e-07,60368.0,60367.0,0.057958]
[1724113852653,5.3e-07,60368.0,60367.0,0.457958]
[1724113853153,5.3e-07,60368.0,60367.0,0.954918]
[1724113853760,0.34488457,60374.0,60373.0,0.057953]
[1724113853962,0.24496757,60374.0,60373.0,0.418753]
[1724113854170,0.00498357,60374.0,60373.0,1.315673]
[1724113854463,5.7e-07,60374.0,60373.0,1.62300901]
[1724113854862,1e-06,60393.0,60392.0,0.057934]
[1724113855057,0.3608,60406.0,60405.0,0.057922]
[1724113855252,0.3608,60412.0,60397.0,0.3608]
[1724113855453,0.3608,60420.0,60410.0,0.3608]
[1724113855653,0.0818,60430.0,60416.0,0.3608]
[1724113855853,0.0818,60430.0,60424.0,0.057903]
[1724113855854,0.36079845,60426.0,60424.0,0.057903]
[1724113856362,0.36079845,60426.0,60410.0,0.59272]
[1724113856363,0.3608,60432.0,60419.0,0.3608]
[1724113856566,0.3608,60437.0,60436.0,0.057891]
[1724113857867,0.37825856,60442.0,60441.0,0.057887]
[1724113858176,0.01745856,60442.0,60441.0,0.057887]
[1724113858467,0.3608,60448.0,60447.0,0.057882]
[1724113859060,0.1663,60449.0,60447.0,0.057882]
[1724113859271,0.3608,60454.0,60447.0,0.4]
[1724113859462,0.72159845,60448.0,60436.0,0.3608]
[1724113859659,0.72159845,60448.0,60442.0,0.057886]
[1724113859660,0.36079845,60445.0,60442.0,0.057886]
[1724113859857,0.36079845,60445.0,60435.0,0.23212835]
[1724113859858,0.3608,60443.0,60441.0,0.057887]
[1724113860267,0.3608,60443.0,60435.0,0.00024835]
[1724113860268,0.36079845,60442.0,60435.0,0.00024835]
[1724113860480,0.057894,60435.0,60408.0,0.3608]
[1724113860660,0.3608,60418.0,60402.0,0.3608]
[1724113860970,0.3608,60418.0,60404.0,0.057922]
[1724113860971,0.36079845,60416.0,60404.0,0.057922]
[1724113861174,0.36079845,60416.0,60400.0,0.56974]
[1724113861471,0.3608,60418.0,60400.0,0.56974]
[1724113861472,0.3608,60430.0,60415.0,0.3608]
[1724113861770,0.36079845,60428.0,60415.0,0.3608]
[1724113862166,0.36079845,60428.0,60426.0,0.057901]
[1724113862473,0.00024762,60429.0,60428.0,0.0579]
[1724113862671,6.2e-07,60429.0,60428.0,0.6505]
[1724113862978,0.3608,60459.0,60430.0,0.057898]
[1724113863173,0.3608,60459.0,60458.0,0.057871]
[1724113863473,0.72159845,60459.0,60458.0,0.057871]
[1724113863674,0.3608,60459.0,60458.0,0.4]
[1724113863865,0.3608,60459.0,60457.0,0.057872]
[1724113864062,0.3608,60466.0,60464.0,0.057865]
[1724113864265,0.5277,60477.0,60458.0,0.248764]
[1724113864266,0.3608,60467.0,60458.0,0.248764]
[1724113864466,0.36079845,60460.0,60458.0,0.248764]
[1724113864678,0.36079845,60459.0,60452.0,0.00024814]
[1724113864977,0.3608,60459.0,60452.0,0.00024814]
[1724113865169,0.3608,60469.0,60453.0,0.49624]
[1724113865374,0.3608,60469.0,60452.0,0.00024814]
[1724113865565,0.72159845,60457.0,60452.0,0.00024814]
[1724113865875,0.36079845,60456.0,60452.0,0.00024814]
[1724113866171,0.3608,60463.0,60452.0,0.00024814]
[1724113866373,0.3608,60456.0,60452.0,0.00024814]
[1724113866576,0.7216,60456.0,60439.0,0.0001793]
[1724113866771,0.057871,60459.0,60439.0,0.0001793]
[1724113866772,0.72159845,60440.0,60439.0,0.0001793]
[1724113867175,0.72159845,60440.0,60419.0,0.3353]
[1724113867374,0.3608,60427.0,60418.0,0.057909]
[1724113867572,0.3608,60427.0,60416.0,0.3608]
[1724113867769,0.3608,60435.0,60426.0,0.7216]
[1724113867969,0.3608,60435.0,60417.0,0.6075588]
[1724113868179,0.36079845,60432.0,60417.0,0.3608]
[1724113868368,0.00015552,60434.0,60417.0,0.3608]
[1724113868674,0.00015552,60434.0,60427.0,0.0579]
[1724113868675,0.00024814,60429.0,60427.0,0.0579]
[1724113869480,1.4e-07,60429.0,60428.0,0.49644]
[1724113869968,1.4e-07,60429.0,60427.0,0.0579]
[1724113870486,0.36079859,60429.0,60427.0,0.0579]
[1724113870669,0.36079859,60429.0,60408.0,0.3608]
[1724113870670,0.72159845,60428.0,60408.0,0.3608]
[1724113870872,0.36079845,60418.0,60414.0,0.057913]
[1724113871073,0.36079845,60418.0,60408.0,0.3608]
[1724113871267,0.36079845,60418.0,60416.0,0.05815914]
[1724113871668,1.4e-07,60429.0,60416.0,0.00024814]
[1724113871669,0.3608,60428.0,60416.0,0.00024814]
[1724113871982,0.36079845,60425.0,60416.0,0.00024814]
[1724113872182,0.3608,60428.0,60426.0,0.057901]
[1724113872890,1.4e-07,60429.0,60428.0,0.0579]
[1724113873186,0.3608,60443.0,60428.0,0.4187]
[1724113873381,0.3608,60443.0,60435.0,0.3608]
[1724113873781,0.3608,60443.0,60442.0,0.057886]
[1724113873984,0.3608,60448.0,60447.0,0.057882]
[1724113875091,0.3608,60448.0,60441.0,0.00024814]
[1724113875092,0.63886139,60448.0,60441.0,0.00024814]
[1724113875275,0.36079845,60442.0,60441.0,0.00024814]
[1724113875480,0.0851,60447.0,60441.0,0.00024814]
[1724113875877,0.0851,60447.0,60446.0,0.057883]
[1724113876488,0.3353,60492.0,60446.0,0.057883]
[1724113876489,0.3608,60467.0,60452.0,0.057877]
[1724113876680,0.3608,60467.0,60445.0,0.3353]
[1724113876681,0.3608,60461.0,60457.0,0.057872]
[1724113876877,0.72159845,60461.0,60457.0,0.057872]
[1724113877081,0.3608,60469.0,60451.0,0.3608]
[1724113877288,0.36079845,60466.0,60452.0,0.057876]
[1724113877492,0.36079845,60466.0,60456.0,0.3608]
[1724113877694,0.36079845,60466.0,60465.0,0.057864]
[1724113877994,0.3608,60469.0,60465.0,0.057864]
[1724113878189,0.36079845,60466.0,60465.0,0.057864]
[1724113878588,0.36079845,60466.0,60457.0,0.3608]
[1724113878794,0.36079845,60485.0,60471.0,0.057859]
[1724113879091,0.3608,60482.0,60481.0,0.057849]
[1724113879291,0.3608,60482.0,60468.0,0.3608]
[1724113879292,0.36079845,60481.0,60479.0,0.057851]
[1724113879480,0.3608,60482.0,60479.0,0.057851]
[1724113879681,0.36079845,60480.0,60468.0,0.3608]
[1724113879887,0.36079845,60470.0,60468.0,0.3608]
[1724113880190,0.36079845,60470.0,60469.0,0.057861]
[1724113880692,0.1711,60494.0,60469.0,0.7216]
[1724113880693,0.3608,60488.0,60469.0,0.7216]
[1724113880887,0.36079845,60482.0,60469.0,0.7216]
[1724113881587,0.36079845,60482.0,60481.0,0.057849]
[1724113881985,0.36079845,60482.0,60469.0,0.3608]
[1724113882186,0.3608,60475.0,60473.0,0.057856]
[1724113882386,0.36079845,60474.0,60473.0,0.057856]
[1724113883596,0.3608,60491.0,60472.0,0.3608]
[1724113883891,0.3608,60491.0,60468.0,0.00024814]
[1724113883892,0.36079845,60474.0,60473.0,0.057857]
[1724113884399,0.3608,60485.0,60472.0,0.3608]
[1724113884691,0.36079845,60474.0,60468.0,0.00024814]
[1724113884894,0.36079845,60473.0,60468.0,0.00024814]
[1724113885081,0.36079845,60473.0,60472.0,0.057858]
[1724113885391,0.057847,60484.0,60479.0,0.057851]
[1724113885792,0.36079845,60480.0,60479.0,0.057851]
[1724113886187,0.72159845,60480.0,60468.0,0.00024814]
[1724113886387,0.3608,60485.0,60477.0,0.3608]
[1724113886692,0.01762208,60493.0,60483.0,0.6961]
[1724113886889,0.418634,60497.0,60492.0,0.057839]
[1724113887201,0.36079845,60484.0,60483.0,0.057847]
[1724113887593,0.3608,60497.0,60489.0,0.057841]
[1724113887897,0.36079845,60491.0,60489.0,0.057841]
[1724113888093,0.36079845,60491.0,60477.0,0.36104814]
[1724113888399,0.36079845,60491.0,60490.0,0.05784]
[1724113888587,0.3608,60496.0,60494.0,0.057836]
[1724113888787,0.3608,60496.0,60495.0,0.057836]
[1724113889194,0.72159845,60496.0,60495.0,0.057836]
[1724113889389,0.72159845,60496.0,60489.0,0.00024814]
[1724113889589,0.3608,60496.0,60492.0,0.057838]
[1724113889800,0.31945995,60493.0,60492.0,0.057838]
[1724113890695,0.31945995,60493.0,60489.0,0.00024814]
[1724113890999,0.3608,60496.0,60489.0,0.05808914]
[1724113891000,0.68025995,60490.0,60489.0,0.05808914]
[1724113891196,0.31945995,60490.0,60489.0,0.05808914]
[1724113892399,0.68025995,60490.0,60489.0,0.05808914]
[1724113892796,0.31945995,60490.0,60489.0,0.05808914]
[1724113892997,0.02211925,60500.0,60499.0,0.057832]
[1724113893207,0.02211925,60500.0,60499.0,0.418632]
[1724113893601,0.3415792,60500.0,60497.0,0.3608]
[1724113893903,0.68025995,60498.0,60489.0,0.00024814]